bitfinex-derivatives/quotes_SOLF0:USTF0_20240924
["timestamp","ask_amount","ask_price","bid_price","bid_amount"]
[1727195085908,14.84,145.75,145.71,3.4315]
[1727195086109,4.81479067,145.74,145.66,14.84]
[1727195086309,3.36571455,145.73,145.66,14.84]
[1727195086513,14.84,145.75,145.72,3.4313]
[1727195086707,4.81431074,145.74,145.72,3.4313]
[1727195086902,3.41893692,145.73,145.72,3.4313]
[1727195087102,14.84,145.75,145.72,3.4313]
[1727195087321,19.65430657,145.74,145.65,1.4121]
[1727195087506,14.84,145.7,145.65,1.4121]
[1727195088725,14.84,145.7,145.69,3.4321]
[1727195091216,14.84,145.7,145.68,3.4321]
[1727195091618,14.84,145.7,145.62,1.3868]
[1727195091914,14.84,145.69,145.67,3.4324]
[1727195092619,3.43245639,145.68,145.67,3.4324]
[1727195093009,14.84,145.71,145.68,3.4321]
[1727195093210,4.80495001,145.7,145.63,14.84]
[1727195093410,3.41871969,145.7,145.63,14.84]
[1727195093718,3.41871969,145.7,145.69,3.4319]
[1727195094017,14.84,145.71,145.69,3.4319]
[1727195094408,3.49372113,145.7,145.69,3.4319]
[1727195095713,14.84,145.71,145.63,14.84]
[1727195095916,3.44529263,145.7,145.63,14.84]
[1727195096116,2.6431,145.72,145.65,14.84]
[1727195096511,2.6431,145.72,145.7,3.4317]
[1727195096819,6.0722498,145.72,145.7,3.4317]
[1727195097016,2.6431,145.72,145.7,3.4317]
[1727195097616,6.00436373,145.72,145.7,3.4317]
[1727195097922,6.00436373,145.72,145.71,3.4316]
[1727195099717,6.00436373,145.72,145.62,16.2268]
[1727195100314,6.00436373,145.72,145.69,3.4319]
[1727195100818,6.00436373,145.72,145.7,3.4318]
[1727195101619,3.36126373,145.72,145.71,3.4316]
[1727195102007,14.84,145.74,145.71,3.4316]
[1727195102220,5.85902206,145.73,145.71,3.4316]
[1727195102418,3.37256592,145.82,145.67,14.84]
[1727195102624,14.84,145.79,145.68,4.1839]
[1727195102825,5.85744173,145.78,145.69,14.84]
[1727195103114,1.07186471,145.77,145.69,14.84]
[1727195103322,4.53076176,145.77,145.69,14.84]
[1727195103520,14.84,145.79,145.75,3.4305]
[1727195103719,1.0718057,145.78,145.75,3.4305]
[1727195105025,1.07180491,145.77,145.75,3.4305]
[1727195105227,3.36159549,145.77,145.76,3.4302]
[1727195105419,17.6685,145.81,145.71,14.84]
[1727195105614,1.07164669,145.8,145.7,14.84]
[1727195105813,14.84,145.78,145.75,3.4305]
[1727195106212,14.84,145.76,145.73,3.431]
[1727195106414,14.84,145.74,145.73,3.431]
[1727195106613,14.84,145.74,145.68,2.7635]
[1727195106916,3.47075381,145.73,145.68,2.7635]
[1727195107222,3.47075381,145.73,145.72,3.4312]
[1727195108928,14.84,145.74,145.64,14.84]
[1727195109226,14.84,145.72,145.64,14.84]
[1727195110124,14.84,145.72,145.7,3.4316]
[1727195110526,14.84,145.72,145.64,14.84]
[1727195110925,18.28445207,145.74,145.64,14.84]
[1727195111224,14.84,145.72,145.64,14.84]
[1727195111528,3.44653526,145.71,145.7,3.4318]
[1727195115328,14.84,145.72,145.63,2.8331]
[1727195115629,14.84,145.68,145.63,1.4164]
[1727195115828,14.84,145.68,145.65,3.4329]
[1727195116028,14.84,145.68,145.58,14.84]
[1727195116330,14.84,145.66,145.63,3.4333]
[1727195116525,14.84,145.66,145.56,18.9668]
[1727195117128,14.84,145.67,145.58,14.84]
[1727195117325,14.84,145.65,145.56,4.1268]
[1727195117728,14.84,145.65,145.61,3.4338]
[1727195119935,14.84,145.65,145.62,3.4336]
[1727195121631,14.84,145.65,145.56,4.1268]
[1727195121632,14.84,145.65,145.61,3.4339]
[1727195121936,14.84,145.65,145.56,4.1268]
[1727195122132,14.84,145.65,145.62,3.4336]
[1727195124338,14.84,145.65,145.56,4.1268]
[1727195124833,14.84,145.65,145.63,3.4333]
[1727195125036,14.84,145.65,145.56,4.1268]
[1727195125335,14.84,145.63,145.56,4.1268]
[1727195126336,2.793,145.71,145.56,4.1268]
[1727195126532,3.39128192,145.62,145.56,4.1268]
[1727195126727,14.84,145.61,145.57,3.4348]
[1727195126934,14.84,145.59,145.56,1.4058]
[1727195128942,14.84,145.59,145.58,3.4347]
[1727195129635,3.44042097,145.6,145.58,3.4347]
[1727195129839,14.84,145.61,145.58,3.4347]
[1727195130038,18.31147766,145.61,145.58,3.4347]
[1727195131046,18.31147766,145.61,145.56,1.4058]
[1727195131644,18.31147766,145.61,145.58,3.4344]
[1727195131944,18.31147766,145.61,145.56,1.4058]
[1727195132540,17.4557,145.63,145.56,1.4058]
[1727195133241,14.84,145.63,145.56,1.4058]
[1727195133445,3.36837804,145.64,145.56,16.2458]
[1727195133643,14.84,145.67,145.63,3.4332]
[1727195133941,14.84,145.65,145.57,2.8378]
[1727195134135,14.84,145.65,145.62,3.4337]
[1727195134533,14.84,145.65,145.57,2.8378]
[1727195134742,14.84,145.63,145.57,2.8378]
[1727195134938,14.84,145.63,145.6,3.4341]
[1727195135144,18.31182481,145.63,145.6,3.4341]
[1727195135649,18.31182481,145.63,145.57,1.3953]
[1727195136651,18.31182481,145.63,145.59,3.4343]
[1727195136845,18.31182481,145.63,145.57,1.3953]
[1727195137258,14.84,145.59,145.58,3.4346]
[1727195137751,14.84,145.59,145.57,3.4348]
[1727195137949,14.84,145.59,145.51,18.937]
[1727195138149,18.259009,145.59,145.51,18.937]
[1727195138343,18.259009,145.59,145.58,3.4347]
[1727195139446,3.419009,145.59,145.58,3.4347]
[1727195139647,14.84,145.6,145.57,3.4348]
[1727195139840,18.24790089,145.6,145.57,3.4348]
[1727195141060,14.84,145.58,145.51,2.7498]
[1727195141759,14.84,145.58,145.55,3.4351]
[1727195142055,14.84,145.58,145.51,2.7498]
[1727195142253,3.40790089,145.6,145.59,3.4344]
[1727195142447,16.214,145.62,145.59,3.4344]
[1727195142642,16.214,145.62,145.52,23.0537]
[1727195142847,16.214,145.62,145.58,3.4345]
[1727195143150,19.65914788,145.62,145.58,3.4345]
[1727195145159,19.65914788,145.62,145.59,3.4344]
[1727195145450,19.65914788,145.62,145.52,23.0537]
[1727195145653,14.84,145.6,145.52,1.3416]
[1727195146656,14.84,145.6,145.56,3.435]
[1727195147052,14.84,145.6,145.52,1.3416]
[1727195147260,14.84,145.58,145.51,2.7498]
[1727195147850,14.84,145.56,145.51,1.356]
[1727195149857,14.84,145.52,145.32,226.0]
[1727195150158,14.84,145.59,145.32,226.0]
[1727195150159,14.84,145.54,145.44,16.2536]
[1727195150356,14.84,145.59,145.46,14.84]
[1727195150357,14.84,145.56,145.46,14.84]
[1727195150544,14.84,145.56,145.53,3.4356]
[1727195150748,14.84,145.56,145.47,1.3627]
[1727195151260,14.84,145.56,145.53,3.4356]
[1727195154957,14.84,145.56,145.52,3.436]
[1727195155866,14.84,145.54,145.47,1.3627]
[1727195156554,14.84,145.54,145.5,3.4363]
[1727195156753,14.84,145.54,145.47,1.3627]
[1727195157265,14.84,145.55,145.47,1.3627]
[1727195158558,14.84,145.55,145.53,3.4358]
[1727195161470,14.84,145.55,145.54,3.4356]
[1727195161654,16.1653,145.58,145.54,3.4356]
[1727195161965,16.1653,145.58,145.57,3.4349]
[1727195162159,16.1653,145.58,145.49,14.84]
[1727195162160,3.47931118,145.59,145.51,14.84]
[1727195162464,14.84,145.61,145.51,14.84]
[1727195162669,1.07326088,145.6,145.51,16.1507]
[1727195162964,14.84,145.59,145.51,1.3107]
[1727195163166,14.84,145.57,145.5,1.381]
[1727195163665,14.84,145.57,145.52,3.4359]
[1727195164570,14.84,145.57,145.53,3.4358]
[1727195165461,14.84,145.57,145.5,1.381]
[1727195165660,14.84,145.59,145.5,1.381]
[1727195165965,14.84,145.59,145.56,3.4351]
[1727195166870,14.84,145.57,145.5,1.381]
[1727195167166,14.84,145.57,145.53,3.4357]
[1727195167359,14.84,145.57,145.5,1.381]
[1727195167770,14.84,145.57,145.55,3.4353]
[1727195167964,14.84,145.57,145.5,1.381]
[1727195168168,14.84,145.59,145.5,1.381]
[1727195168364,14.84,145.59,145.56,3.4349]
[1727195168772,14.84,145.59,145.5,1.381]
[1727195168974,14.84,145.59,145.54,3.4354]
[1727195169279,14.84,145.57,145.54,3.4354]
[1727195169481,14.84,145.57,145.53,3.4358]
[1727195169975,14.84,145.57,145.54,3.4355]
[1727195172975,14.84,145.57,145.55,3.4353]
[1727195173370,14.84,145.59,145.56,3.4351]
[1727195173579,1.0734,145.58,145.56,3.4351]
[1727195174370,1.0734,145.58,145.57,3.4349]
[1727195174571,14.84,145.61,145.53,14.84]
[1727195174878,4.83577643,145.62,145.53,14.84]
[1727195175078,1.07311157,145.61,145.53,14.84]
[1727195175475,4.83577643,145.62,145.53,14.84]
[1727195176181,14.84,145.61,145.51,16.1753]
[1727195176584,14.84,145.59,145.56,3.4349]
[1727195176878,14.84,145.57,145.5,8.2538]
[1727195177077,14.84,145.57,145.5,1.381]
[1727195178275,14.84,145.57,145.55,3.4353]
[1727195179974,14.84,145.57,145.55,3.4352]
[1727195182883,14.84,145.57,145.5,1.381]
[1727195183480,14.84,145.59,145.5,1.381]
[1727195184292,14.84,145.59,145.56,3.4351]
[1727195184693,14.84,145.61,145.51,14.84]
[1727195184890,1.07325838,145.6,145.57,3.4349]
[1727195188291,9.51,145.58,145.57,3.4349]
[1727195188487,4.83577643,145.62,145.55,9.51]
[1727195188692,9.51,145.6,145.55,9.51]
[1727195189100,9.51,145.6,145.58,3.4345]
[1727195189294,9.51,145.6,145.55,9.51]
[1727195190099,9.51,145.6,145.59,3.4344]
[1727195190297,4.83577643,145.62,145.59,3.4344]
[1727195190496,1.07308651,145.61,145.59,3.4344]
[1727195190695,15.92308651,145.61,145.51,14.85]
[1727195190898,14.85,145.59,145.5,1.381]
[1727195191296,14.85,145.59,145.56,3.435]
[1727195191493,14.85,145.59,145.5,1.381]
[1727195191892,14.85,145.59,145.57,3.4347]
[1727195193705,14.85,145.59,145.5,1.381]
[1727195194007,14.85,145.55,145.45,21.7253]
[1727195194193,3.51904041,145.54,145.45,21.7253]
[1727195195094,3.51904041,145.54,145.52,3.4359]
[1727195196803,14.85,145.53,145.45,14.85]
[1727195197008,14.85,145.53,145.44,1.4109]
[1727195197202,14.85,145.53,145.48,3.4369]
[1727195197395,14.85,145.53,145.43,1.3718]
[1727195198008,14.85,145.53,145.49,3.4366]
[1727195198414,3.50512273,145.54,145.51,3.4362]
[1727195198607,14.85,145.55,145.51,3.4362]
[1727195198810,1.07376335,145.54,145.51,3.4362]
[1727195199106,3.49549611,145.53,145.51,3.4362]
[1727195199308,3.49549611,145.53,145.52,3.4361]
[1727195199511,14.85,145.55,145.52,3.4361]
[1727195199899,3.36381018,145.54,145.52,3.4361]
[1727195201118,14.85,145.55,145.44,14.85]
[1727195201511,14.85,145.55,145.5,3.4364]
[1727195202012,14.85,145.53,145.44,14.85]
[1727195202213,14.85,145.51,145.48,3.4369]
[1727195202919,3.48518655,145.5,145.49,3.4368]
[1727195203213,14.85,145.51,145.43,1.3718]
[1727195203425,2.7651,145.52,145.44,14.85]
[1727195203611,2.7651,145.52,145.5,3.4364]
[1727195203817,6.25567901,145.52,145.5,3.4364]
[1727195204817,6.25567901,145.52,145.51,3.4363]
[1727195205021,2.7651,145.52,145.28,30.90241602]
[1727195205218,14.85,145.49,145.41,1.3511]
[1727195205423,14.85,145.49,145.43,3.438]
[1727195206123,21.64294083,145.49,145.43,3.438]
[1727195206316,21.64294083,145.49,145.44,3.4379]
[1727195207222,21.64294083,145.49,145.41,1.3511]
[1727195207223,14.85,145.49,145.41,1.3511]
[1727195207411,14.85,145.51,145.42,14.85]
[1727195207607,3.40785581,145.52,145.46,14.85]
[1727195207820,18.2854,145.55,145.49,3.4366]
[1727195208226,3.36898947,145.54,145.46,14.85]
[1727195208416,14.85,145.55,145.46,14.85]
[1727195208619,14.85,145.55,145.47,1.3842]
[1727195209019,14.85,145.55,145.5,3.4365]
[1727195209317,14.85,145.53,145.47,1.3842]
[1727195209517,14.85,145.53,145.48,3.4369]
[1727195209719,18.286,145.53,145.48,3.4369]
[1727195210616,14.85,145.49,145.41,1.3842]
[1727195211325,16.2662,145.53,145.41,1.3842]
[1727195211326,14.85,145.47,145.41,1.3842]
[1727195211522,18.2874,145.47,145.43,3.438]
[1727195211822,18.2874,145.47,145.4,1.3311]
[1727195211823,14.85,145.46,145.4,1.3311]
[1727195212022,14.85,145.46,145.39,1.3714]
[1727195212521,18.2877,145.46,145.42,3.4383]
[1727195212722,3.48449425,145.47,145.39,1.3714]
[1727195212920,14.85,145.48,145.44,3.4378]
[1727195213123,14.85,145.5,145.4,16.2879]
[1727195213521,16.2662,145.53,145.44,14.85]
[1727195213920,3.4361,145.52,145.44,14.85]
[1727195214118,16.2662,145.53,145.44,14.85]
[1727195214623,19.7021,145.53,145.44,14.85]
[1727195214823,16.2662,145.53,145.44,14.85]
[1727195215123,3.4361,145.52,145.48,3.437]
[1727195215327,14.85,145.51,145.42,14.85]
[1727195215631,14.85,145.49,145.4,16.2879]
[1727195216118,18.287,145.49,145.45,3.4376]
[1727195216720,14.85,145.47,145.39,1.3714]
[1727195216925,18.36434073,145.47,145.39,1.3714]
[1727195217129,21.80164073,145.47,145.39,1.3714]
[1727195217931,18.36434073,145.47,145.39,1.3714]
[1727195218618,3.51434073,145.47,145.4,14.85]
[1727195219827,14.85,145.47,145.39,1.3714]
[1727195220021,3.44214364,145.46,145.39,1.3714]
[1727195220418,3.44214364,145.46,145.43,3.4381]
[1727195221019,3.44214364,145.46,145.39,1.3714]
[1727195221219,2.7169,145.48,145.39,1.3714]
[1727195222330,6.1541,145.48,145.43,3.438]
[1727195222514,6.1541,145.48,145.39,1.3714]
[1727195222828,14.85,145.51,145.42,14.85]
[1727195223020,1.4162,145.53,145.43,14.85]
[1727195223217,1.0739894,145.52,145.43,14.85]
[1727195223419,3.4364,145.51,145.46,3.4373]
[1727195224137,3.4366,145.5,145.46,3.4373]
[1727195224425,3.4366,145.5,145.45,3.4376]
[1727195224830,3.4366,145.5,145.41,14.85]
[1727195225625,3.4364,145.51,145.41,14.85]
[1727195225929,3.4364,145.51,145.43,14.85]
[1727195226128,3.4364,145.51,145.46,3.4373]
[1727195226628,3.4364,145.51,145.43,14.85]
[1727195226928,1.4162,145.53,145.43,14.85]
[1727195227132,1.07393387,145.52,145.43,14.85]
[1727195227332,1.07393387,145.52,145.48,3.4369]
[1727195228033,3.4362,145.52,145.48,3.4369]
[1727195228733,3.4362,145.52,145.44,1.4066]
[1727195228734,3.4362,145.52,145.47,3.4372]
[1727195228925,3.4364,145.51,145.47,3.4372]
[1727195229721,3.4362,145.52,145.47,3.4372]
[1727195231635,3.4364,145.51,145.47,3.4372]
[1727195232226,16.2662,145.53,145.47,3.4372]
[1727195232422,4.51010184,145.52,145.47,3.4372]
[1727195232727,3.4362,145.52,145.47,3.4372]
[1727195233443,3.4366,145.5,145.46,3.4374]
[1727195233735,16.2662,145.53,145.43,14.85]
[1727195233936,3.4364,145.51,145.47,3.4371]
[1727195236136,3.4362,145.52,145.48,3.437]
[1727195236339,1.07400595,145.51,145.43,14.85]
[1727195236532,16.2662,145.53,145.43,14.85]
[1727195236735,4.8522,145.53,145.49,3.4366]
[1727195237037,1.07386093,145.52,145.49,3.4366]
[1727195237246,1.07386093,145.52,145.48,3.4369]
[1727195237636,1.07386093,145.52,145.46,14.85]
[1727195237836,4.8522,145.53,145.46,14.85]
[1727195238036,6.2518,145.54,145.46,14.85]
[1727195238239,3.49143564,145.55,145.47,14.85]
[1727195238445,3.49143564,145.55,145.42,6.8767]
[1727195238446,4.0513,145.59,145.45,14.85]
[1727195238635,1.07349835,145.58,145.51,14.85]
[1727195239040,1.07349835,145.58,145.56,3.435]
[1727195239254,91.5691353,145.6,145.51,14.85]
[1727195239442,19.0297,145.63,145.53,14.85]
[1727195239632,19.0297,145.63,145.52,14.85]
[1727195239633,1.07334368,145.59,145.52,14.85]
[1727195239943,14.85,145.61,145.52,14.85]
[1727195240145,14.85,145.57,145.47,16.2608]
[1727195240537,1.07356335,145.56,145.47,16.2608]
[1727195240842,4.50896335,145.56,145.47,16.2608]
[1727195241041,3.4354,145.56,145.47,16.2608]
[1727195241347,6.83542368,145.56,145.47,16.2608]
[1727195241541,6.83542368,145.56,145.51,3.4361]
[1727195241741,1.4377,145.58,145.48,14.85]
[1727195241945,1.07343628,145.57,145.5,14.85]
[1727195242742,1.07343628,145.57,145.54,3.4356]
[1727195242941,1.07343628,145.57,145.5,14.85]
[1727195243147,14.85,145.61,145.54,3.4356]
[1727195243349,1.07341719,145.6,145.54,3.4356]
[1727195243946,1.07341719,145.6,145.52,14.85]
[1727195244145,1.07335706,145.59,145.52,16.2222]
[1727195244443,2.742,145.63,145.54,14.85]
[1727195244647,1.07316407,145.62,145.54,14.85]
[1727195245239,1.07316407,145.62,145.53,1.4414]
[1727195245550,15.92316407,145.62,145.53,16.2914]
[1727195245747,1.07316407,145.61,145.53,16.2914]
[1727195246042,1.07316407,145.61,145.56,3.435]
[1727195246441,1.07316407,145.61,145.53,1.4414]
[1727195246442,14.85,145.6,145.53,1.4414]
[1727195246747,1.07316407,145.59,145.53,1.4414]
[1727195247448,1.07316407,145.59,145.52,1.3722]
[1727195247851,3.4349,145.58,145.52,1.3722]
[1727195248146,1.07352885,145.57,145.52,1.3722]
[1727195248650,3.4345,145.59,145.52,1.3722]
[1727195248848,1.3935,145.62,145.52,1.3722]
[1727195248849,1.07344912,145.58,145.53,14.85]
[1727195249047,1.3935,145.62,145.55,14.85]
[1727195249345,1.07326373,145.61,145.57,3.4348]
[1727195252054,4.8274,145.62,145.57,3.4348]
[1727195252249,1.07328412,145.61,145.57,3.4348]
[1727195253151,1.07328412,145.61,145.58,3.4346]
[1727195253348,3.44175491,145.64,145.57,14.85]
[1727195253558,1.07301477,145.63,145.57,14.85]
[1727195253854,1.07301477,145.62,145.57,14.85]
[1727195254150,3.4336,145.63,145.55,14.85]
[1727195254342,3.4336,145.63,145.58,3.4345]
[1727195254343,1.073039,145.62,145.58,3.4345]
[1727195255153,1.073039,145.62,145.57,14.85]
[1727195255343,3.4334,145.64,145.57,14.85]
[1727195255651,3.4337,145.62,145.55,14.85]
[1727195255853,18.30762801,145.65,145.55,14.85]
[1727195256057,14.85,145.63,145.55,14.85]
[1727195256251,1.07306931,145.62,145.55,14.85]
[1727195256550,3.46849333,145.61,145.55,14.85]
[1727195256951,14.85,145.63,145.55,14.85]
[1727195257149,1.07307295,145.62,145.55,14.85]
[1727195257351,14.85,145.61,145.53,16.1962]
[1727195257541,15.92322477,145.6,145.53,1.3462]
[1727195257748,14.85,145.6,145.53,1.3462]
[1727195257939,18.2843,145.6,145.55,3.4352]
[1727195258143,18.2843,145.6,145.53,1.3462]
[1727195258854,18.2843,145.6,145.55,3.4352]
[1727195259351,14.85,145.6,145.53,1.3462]
[1727195259654,1.07331505,145.59,145.54,3.4354]
[1727195260455,3.4345,145.59,145.55,3.4354]
[1727195260848,14.85,145.6,145.53,1.3462]
[1727195261041,1.3568,145.62,145.51,1.355]
[1727195261042,14.85,145.57,145.51,1.355]
[1727195261549,18.285,145.57,145.51,1.355]
[1727195261950,3.435,145.57,145.52,3.436]
[1727195262258,3.4351,145.56,145.52,3.436]
[1727195262751,14.85,145.59,145.52,3.436]
[1727195262955,3.435,145.57,145.53,3.4358]
[1727195263644,3.435,145.57,145.52,3.436]
[1727195264449,3.435,145.57,145.53,3.4358]
[1727195265053,17.6556,145.61,145.54,3.4356]
[1727195265256,17.6556,145.61,145.52,14.85]
[1727195265649,3.4346,145.59,145.54,3.4355]
[1727195266546,14.85,145.59,145.51,1.355]
[1727195267149,3.4349,145.58,145.53,3.4357]
[1727195268755,1.07346484,145.57,145.53,3.4357]
[1727195268955,3.4349,145.58,145.53,3.4357]
[1727195269158,3.4346,145.59,145.51,1.355]
[1727195269343,1.07339351,145.58,145.51,1.355]
[1727195269851,4.50809351,145.58,145.54,3.4355]
[1727195270046,3.4347,145.58,145.54,3.4355]
[1727195270251,17.6556,145.61,145.52,14.85]
[1727195270452,1.07331413,145.6,145.53,1.3039]
[1727195270654,3.38567287,145.63,145.57,3.4348]
[1727195270855,1.07320093,145.62,145.57,3.4348]
[1727195271056,8.01548442,145.61,145.57,3.4348]
[1727195271258,6.94228349,145.61,145.57,3.4348]
[1727195272562,3.50828349,145.61,145.58,3.4346]
[1727195272755,3.4338,145.62,145.58,3.4346]
[1727195273259,3.39863889,145.61,145.58,3.4346]
[1727195273460,3.4338,145.62,145.58,3.4346]
[1727195273668,1.07314712,145.61,145.57,3.4348]
[1727195274355,3.44697329,145.6,145.57,3.4348]
[1727195275163,3.4342,145.6,145.54,1.412]
[1727195275362,6.91382485,145.6,145.54,1.412]
[1727195277757,6.91382485,145.6,145.55,3.4352]
[1727195279168,18.32962485,145.6,145.54,1.412]
[1727195279366,1.07332622,145.59,145.54,1.412]
[1727195279770,3.4348,145.58,145.54,4.8475]
[1727195281867,2.6627,145.66,145.54,1.412]
[1727195282066,2.6627,145.66,145.56,14.85]
[1727195282270,1.07317913,145.65,145.56,14.85]
[1727195282573,3.4332,145.64,145.59,3.4342]
[1727195282761,3.50268114,145.64,145.56,14.85]
[1727195282960,1.07317913,145.63,145.6,3.4342]
[1727195283171,3.43874604,145.62,145.6,3.4342]
[1727195283579,17.5127,145.66,145.6,3.4342]
[1727195283764,3.4331,145.65,145.6,3.4342]
[1727195284074,1.07296077,145.64,145.6,3.4342]
[1727195284373,1.07294487,145.63,145.6,3.4342]
[1727195284565,21.01143482,145.66,145.6,3.4342]
[1727195284768,1.0729449,145.65,145.57,1.4427]
[1727195284963,1.0729449,145.65,145.54,1.412]
[1727195284964,14.85,145.63,145.54,1.412]
[1727195285276,6.16143482,145.66,145.54,4.8476]
[1727195285277,3.4346,145.59,145.54,4.8476]
[1727195285478,14.85,145.61,145.53,1.3039]
[1727195285676,14.85,145.57,145.49,1.3451]
[1727195286375,18.32124256,145.57,145.49,1.3451]
[1727195286770,18.32124256,145.57,145.51,3.4362]
[1727195286771,1.07356082,145.56,145.51,3.4362]
[1727195287568,21.75634256,145.57,145.51,3.4362]
[1727195287776,1.07356022,145.56,145.51,3.4362]
[1727195287975,18.2854,145.55,145.49,1.3451]
[1727195288473,14.85,145.55,145.49,1.3451]
[1727195288775,14.85,145.55,145.5,3.4363]
[1727195290479,14.85,145.55,145.49,1.3451]
[1727195290480,14.85,145.55,145.51,3.4363]
[1727195292179,14.85,145.55,145.5,3.4364]
[1727195292378,14.85,145.55,145.49,1.3451]
[1727195292580,1.07373683,145.54,145.48,2.699]
[1727195292767,14.85,145.53,145.44,14.85]
[1727195293276,14.85,145.53,145.47,3.4371]
[1727195293477,3.4361,145.52,145.47,3.4371]
[1727195293683,14.85,145.53,145.43,1.3226]
[1727195294072,1.07390768,145.52,145.43,1.3226]
[1727195294274,1.07390768,145.52,145.44,16.2189]
[1727195294577,1.07390768,145.52,145.44,1.3689]
[1727195294879,4.51010768,145.52,145.44,1.3689]
[1727195295070,3.4362,145.52,145.47,3.4371]
[1727195295274,14.85,145.53,145.44,1.3689]
[1727195295485,1.07392535,145.52,145.44,1.3689]
[1727195295671,14.85,145.53,145.48,3.4369]
[1727195295876,1.07392464,145.52,145.48,3.4369]
[1727195296381,18.286,145.53,145.48,3.4369]
[1727195296574,1.07392406,145.52,145.48,3.4369]
[1727195296777,1.07392406,145.52,145.49,3.4367]
[1727195297084,1.07392406,145.52,145.44,1.3689]
[1727195297476,1.07392406,145.52,145.48,3.4369]
[1727195298286,4.51002406,145.52,145.48,3.4369]
[1727195298475,3.4361,145.52,145.48,3.4369]
[1727195300181,18.2859,145.53,145.48,3.4369]
[1727195300370,1.07389206,145.52,145.48,3.4369]
[1727195300770,1.07389206,145.52,145.44,1.3689]
[1727195300771,1.07389206,145.52,145.49,3.4368]
[1727195301386,18.2859,145.53,145.49,3.4368]
[1727195301989,1.07385982,145.52,145.49,3.4368]
[1727195302486,14.85,145.53,145.49,3.4368]
[1727195303085,3.47124256,145.57,145.46,14.85]
[1727195303287,14.85,145.58,145.48,14.85]
[1727195303499,1.07381702,145.57,145.49,2.8466]
[1727195303680,1.07381702,145.57,145.53,3.4356]
[1727195303883,1.07358919,145.56,145.53,3.4356]
[1727195304088,18.2853,145.56,145.51,3.4362]
[1727195304588,15.92366066,145.55,145.46,14.85]
[1727195304798,18.2855,145.55,145.5,3.4364]
[1727195305291,1.0737158,145.54,145.5,3.4364]
[1727195307495,4.5093158,145.54,145.5,3.4364]
[1727195307687,3.4356,145.54,145.5,3.4364]
[1727195310484,21.67947482,145.55,145.5,3.4364]
[1727195310680,1.07378029,145.54,145.5,3.4364]
[1727195310889,1.07378029,145.54,145.46,16.2663]
[1727195311095,1.07378029,145.54,145.48,14.85]
[1727195311292,3.39397482,145.55,145.48,14.85]
[1727195311595,98.7471,145.59,145.5,14.85]
[1727195311795,1.07353385,145.58,145.5,14.85]
[1727195311985,1.07350774,145.57,145.56,3.435]
[1727195312585,1.07350774,145.57,145.52,16.2405]
[1727195312586,1.07330819,145.59,145.57,3.4349]
[1727195312788,106.39729173,145.61,145.57,3.4349]
[1727195312789,91.54729173,145.61,145.57,3.4349]
[1727195313093,1.07326639,145.6,145.57,3.4349]
[1727195314389,1.07326639,145.6,145.58,3.4347]
[1727195314594,91.54729173,145.61,145.58,3.4347]
[1727195315094,1.07323019,145.6,145.58,3.4347]
[1727195316795,91.54729173,145.61,145.58,3.4347]
[1727195320292,82.5,145.7,145.58,14.85]